{"text_format":"1","workbook":"xlsx","n_sheets":22,"sheets":["Cover Page","Facility Info","Operational Data","Operational Summary","Perf. Form 1","Energy Form 1","Public Liasion","Permit Compliance","Improvements","CO2 N2O","Residues","Water","Air (periodic)","Air (CEMS)","HCl","SO2","NOx","TOC","Particulates","CO 95% 10 min","NH3","Template changes log"],"not_rendered":{"charts":7,"images":2,"macros":1,"external_links":0,"defined_names":25,"comments":0,"pivot_tables":0},"unopened":[],"bounds":{"document_bytes":16777216,"sheet_cells":100000,"rows_first":2000,"rows_last":500,"rows_between":2000,"halvings":0,"cell_chars":16384,"cell_head_chars":4096},"cells_cut":0,"cells_raw":0,"read":"whole","date_system":"1900"}

{"sheet":"Cover Page","index":0,"n_rows":53,"n_cols":11,"rows_kept":53,"cut":false,"hidden":false,"merged":[[48,2,48,3],[48,6,48,8],[52,2,52,3],[36,1,36,8],[40,2,40,8],[42,2,42,4],[44,2,44,4],[46,2,46,3],[46,6,46,8],[13,10,18,12],[34,1,34,8],[0,3,5,6],[7,1,23,8],[28,1,28,8],[30,1,30,8],[32,1,32,8]]}
[null,null,null,{"$error":"#VALUE!"}]
[null,null,null,null,null,null,null,null,null,null,"Template version 25.1a (for incinerators) - 27/11/25"]
[]
[null,null,null,null,null,null,null,null,null,null,"Note that there is another version of this template available for co-incinerators"]
[]
[]
[]
[null,"Add photo"]
[]
[]
[]
[]
[null,null,null,null,null,null,null,null,null,null,"Notes:"]
[null,null,null,null,null,null,null,null,null,null,"This template may require adjustments by individual operators to meet specific reporting requirements as defined in the site Permit(s)"]
[]
[]
[]
[]
[]
[]
[]
[]
[]
[]
[]
[]
[]
[]
[null,"Annual Performance Report 2025"]
[]
[null,"Permit EPR/BJ6178IX"]
[]
[null,"SUEZ R&R Kirklees EfW"]
[]
[null,"other name of facility (if applicable)"]
[]
[null,"Kirklees EfW"]
[]
[null,"Year:",2025]
[]
[null,"Address:","Diamond Street, Huddersfield, West Yorkshire HD1 6BZ"]
[]
[null,"Tel: ","01484 448701"]
[]
[null,"Email: ","stephen.taylor@suez.com"]
[]
[null,"Prepared by:","Steve Taylor",null,null,"Position:","EIR Advisor"]
[]
[null,"Approved by:","Mark Ryan",null,null,"Position:","Plant Manager"]
[]
[null,"Version:",1]
[]
[null,"Issue Date:"]

{"sheet":"Facility Info","index":1,"n_rows":15,"n_cols":11,"rows_kept":15,"cut":false,"hidden":false,"merged":[[14,10,23,13],[14,0,41,8],[4,0,10,8],[4,10,9,13]]}
[{"$f":"+'Cover Page'!$B$29","v":"Annual Performance Report 2025"},null,null,null,{"$f":"+'Cover Page'!$B$33","v":"SUEZ R&R Kirklees EfW"}]
[]
["Plant Description and Design",null,null,null,null,null,null,null,null,null,"Notes:"]
[]
["This non-hazardous waste incinerator operates 24/7 and can receive up to 150,000 tonnes of municipal waste from Kirklees Council as well as commercial/trade waste. The plant has one furnace line with a processing capacity of 136,000 tonnes per annum. The heat produced by waste incineration is used to raise superheated steam which generates 9.5 MWh of electricity.\nActivities associated with the incineration are receipt and storage of municipal waste, production of steam and electricity, abatement of flue gas and handling of Incinerator Bottom Ash (IBA) and Air Pollution Control Residue (APCR).",null,null,null,null,null,null,null,null,null,"Include summary of plant design, design capacity, no. of combustion lines, electrical and heat capacity and any other general information that describes the facility, its location and purpose "]
[]
[]
[]
[]
[]
[]
[]
["Summary of Operational Processes and Procedures"]
[]
["Incoming waste is delivered to site by refuse collection vehicle. It is then checked in , weighed and delivered into the reception hall.                                                                                                                 RECEPTION HALL\nA large reception hall allows for refuse collection trucks to manoeuvre and tip waste safely. Air needed for combustion is drawn into the furnace from here so that odour and dust do not escape the building.                               BUNKER\nWaste vehicles reverse to a wheel stop and tip their loads into a large concrete bunker. Mixing of waste occurs as the crane driver sorts the waste looking for unsuitable material to be removed, and to improve the homogeneity of the incinerator feedstock.                                                                                            CONTROL ROOM\nThe plant’s control room centralises the operation of all equipment, including the grab crane used to mix and load waste into a hopper that feeds the furnace. All on-site functions are monitored automatically and manually. Its systems verify in real time that equipment is functioning properly, continuously monitor the combustion gas, and maximise the efficiency of the entire EfW process.                                                                          GRATE AND BOILER\nWaste is lifted into the charging hoppers by the crane. From here it falls into the furnace-charging chute and then onto the grate system for incineration. The thermal energy released from the burning is used to convert water to super-heated steam. At high pressure, this steam drives a turbine to generate electricity.     ELECTRICITY GENERATION\nElectricity is generated at 11kv, with an electric capacity of 9.5 MWh.                                                      INCINERATOR BOTTOM ASH (IBA)\nAsh left on the grate after incineration is carried by conveyor, after quenching, to a storage bunker. A magnet above the conveyor extracts ferrous material for recycling. The remaining bottom ash is trucked off-site for recycling.                                                                                                                                                                                  AIR-COOLED CONDENSERS\nAfter exiting the turbine, the air stream is cooled and condensed back into water through air condensers. This recovered water is treated and reused in the boilers to produce more steam. AIR-COOLED CONDENSERS\nAfter exiting the turbine, the air stream is cooled and condensed back into water through air condensers. This recovered water is treated and reused in the boilers to produce more steam.                                           EMISSION CONTROL                       \nThe gases from the furnace are subject to a rigorous cleaning process involving selective non-catalytic reduction (SNCR), spray absorbers, and active carbon injection. This removes oxides of nitrogen, acidic gases, dioxins, and heavy metals from the gas stream.",null,null,null,null,null,null,null,null,null,"Include summary of key processes and procedures such as (but not limited to); waste reception, control rooms, grate, bed and boiler, energy & heat  generation, cooling systems, residue management, emission controls, health and safety systems, maintenance"]

{"sheet":"Operational Data","index":2,"n_rows":65,"n_cols":10,"rows_kept":65,"cut":false,"hidden":false,"merged":[[4,9,23,9],[25,9,29,9],[53,0,57,0],[34,1,39,1],[3,1,3,2],[10,1,22,1],[26,1,28,1],[7,2,7,3]]}
[{"$f":"+'Cover Page'!$B$29","v":"Annual Performance Report 2025"},null,null,null,{"$f":"+'Cover Page'!$B$33","v":"SUEZ R&R Kirklees EfW"}]
[]
["Operational Data"]
["Plant Size:",135000,null,"tonnes pa",null,null,null,null,null,"Notes:"]
["Nominal net thermal input:",12,"MWth",null,null,null,null,null,null,"* Export capacity = nominal generation capacity at the generator terminals minus nominal parasitic load.\n\n** CHP and district heating plants only - put N/A if no heat export.\n\n***  Combusted tonnage = tonnes delivered in period + (tonnes in bunker at start of period – tonnes in bunker at end of period), or equivalent calculation depending on plant type\n\n**** Availability Definition: The availability of a line is to be calculated by the number of hours the line reported Continuously Monitored emission levels to the Regulator through the calendar year divided by the total number of hours in that year. \n\nThe overall plant availability is calculated as the mean of all lines in the plant. For clarity this includes periods of abnormal operation.  \n\nRationale: The primary function of an Energy from Waste facility is the disposal of waste. It follows therefore that the availability of a plant is determined by the period of time a facility spends undertaking this activity.\n\n*****NCV of waste: This should be completed for all plants which have a boiler. Calculate using total thermal power produced by boiler/boiler efficiency, or other suitable calculation. \n"]
["Nominal electrical export capacity*:",10,"MWe"]
["Nominal heat export capacity**:",null,"MWth"]
["No. of combustion lines:",1,"No. of steam turbines:",null,1]
[]
["Waste types received","Unit","Q1","Q2","Q3","Q4","Year Total","%"]
["Household / Local Authority","tonnes",31495,22210,32021,34272,{"$f":"SUM(C11:F11)","v":119998},{"$f":"IF(G11>0,G11/$G$21,\"-\")","v":0.96049113932156183}]
["Commercial & Industrial ",null,1626,430,491,1081,{"$f":"SUM(C12:F12)","v":3628},2.9039332767701348E-2]
["Hazardous ",null,null,null,null,null,0,"-"]
["Clinical",null,278,481,316,233,1308,1.0469527910736869E-2]
["Waste wood (biomass) ",null,null,null,null,null,0,"-"]
["Refuse Derived Fuel (incl. SRF) - H'hold/LA",null,null,null,null,null,{"$f":"SUM(C16:F16)","v":0},"-"]
["Refuse Derived Fuel (incl. SRF) - C&I",null,null,null,null,null,0,"-"]
["Other [Please specify]",null,null,null,null,null,0,"-"]
["Other [Please specify]",null,null,null,null,null,0,"-"]
["Other [Please specify]",null,null,null,null,null,0,"-"]
["Total waste received",null,{"$f":"SUM(C11:C20)","v":33399},{"$f":"SUM(D11:D20)","v":23121},{"$f":"SUM(E11:E20)","v":32828},{"$f":"SUM(F11:F20)","v":35586},124934]
["Rejected Waste ",null,null,null,null,null,{"$f":"SUM(C22:F22)","v":0},{"$f":"IF(G22>0,G22/$G$21,\"-\")","v":"-"}]
["Unprocessed waste transferred out",null,null,null,null,null,{"$f":"SUM(C23:F23)","v":0},{"$f":"IF(G23>0,G23/$G$21,\"-\")","v":"-"}]
["Total waste combusted ***",null,{"$f":"C21-SUM(C22:C23)","v":33399},{"$f":"D21-SUM(D22:D23)","v":23121},{"$f":"E21-SUM(E22:E23)","v":32828},{"$f":"F21-SUM(F22:F23)","v":35586},{"$f":"SUM(C24:F24)","v":124934}]
[]
["Energy Usage / Export","Unit","Q1","Q2","Q3","Q4","Year Total","KWh/te",null,"Password for protected cells\nA password has been set to prevent accidental  editing of cells with formulae. \nIf you still need to make an edit for some reason then the password = 1234"]
["Power generated at generator terminals","MWh",21205,11451,20452,21168,{"$f":"SUM(C27:F27)","v":74276},{"$f":"IF(G27>0,G27*1000/$G$24,\"-\")","v":594.52190756719551}]
["Power exported to grid and other external user(s)",null,18534.335404770423,9922.9111169889984,17848.326909492615,18533.326568747958,{"$f":"SUM(C28:F28)","v":64838.899999999994},{"$f":"IF(G28>0,G28*1000/$G$24,\"-\")","v":518.98522419837673}]
["Power imported",null,46.99,664.4,83.17,109.9,904.45999999999992,{"$f":"IF(G29>0,G29*1000/$G$24,\"-\")","v":7.2395024572974522}]
["Indicative parasitic load","%",{"$f":"IF(C27>0,(C27-C28)/C27,\"-\")","v":0.12594504103888596},{"$f":"IF(D27>0,(D27-D28)/D27,\"-\")","v":0.13344588970491675},0.12730652701483403,0.12446492022165731,{"$f":"IF(G27>0,1-G28/(G27+G29),\"-\")","v":0.13755648741707638}]
["Thermal Energy Exported **",null,null,null,null,null,{"$f":"SUM(C32:F32)","v":0},{"$f":"IF(G31>0,G31*1000/$G$24,\"-\")","v":"-"}]
["R1 value (if applicable)","R1"]
[]
["Waste Disposal & Recovery","Unit","Q1","Q2","Q3","Q4","Year Total","% inputs"]
["APC Residues - produced","tonnes",1164,857,1220,1210,{"$f":"SUM(C35:F35)","v":4451},{"$f":"IF(G35>0,G35/$G$24,\"-\")","v":3.5626810956184862E-2}]
["IBA - produced",null,6786,4851,6708,6463,24808,{"$f":"IF(G36>0,G36/$G$24,\"-\")","v":0.1985688443498167}]
["Metals recycling",null,284,472,616,622,{"$f":"SUM(C37:F37)","v":1994},1.596042710551171E-2]
["Other",null,null,null,null,null,{"$f":"SUM(C38:F38)","v":0},"-"]
["Other",null,null,null,null,null,0,"-"]
["Other",null,null,null,null,null,0,"-"]
[]
["Raw Material Usage","Unit","Q1","Q2","Q3","Q4","Year Total","Qty./te"]
["Mains Water","ltrs",3000,3000,3000,3000,{"$f":"SUM(C43:F43)","v":12000},{"$f":"IF(G43>0,G43/$G$24,\"-\")","v":9.6050714777402471E-2}]
["Other Water","ltrs",6191,5344,6213,5589,23337,{"$f":"IF(G44>0,G44/$G$24,\"-\")","v":0.18679462756335344}]
["Ammonia","kgs",null,null,null,null,0,"-"]
["Urea","kgs",22700,13750,22700,17150,{"$f":"SUM(C46:F46)","v":76300},0.6107224614596507]
["Activated Carbon","kgs",11367,9395,13288,12110,46160,0.36947508284374148]
["Lime / hydrated lime","kgs",227860,218100,277890,256190,980040,7.8444618758704596]
["Fuel oil","ltrs",87742,124675,106236,118019,436672,3.4952214769398244]
["Gas","m3",null,null,null,null,0,"-"]
["Other",null,null,null,null,null,0,"-"]
[]
["Summary ","Line/Unit","Q1","Q2","Q3","Q4","Year Total",null,"Hrs in year "]
["Availability of waste combustion by line, hrs ****",1,2059,1493.5,2070.5,2076,{"$f":"SUM(C54:F54)","v":7699},{"$f":"+G54/$I$54","v":0.87888127853881282},8760,"Change this figure to 8784 in a leap year"]
[null,2,null,null,null,null,0,{"$f":"+G55/$I$54","v":0}]
[null,3,null,null,null,null,0,0]
[null,4,null,null,null,null,0,0]
[null,5,null,null,null,null,{"$f":"SUM(C58:F58)","v":0},0]
["Hours of turbine operations, hrs",1,2059,1229,2071,2076,7435,0.84874429223744297]
["Hours of turbine operations, hrs",2,null,null,null,null,0,0]
["Hours of heat / steam export**","hours",null,null,null,null,0,{"$f":"IF(B61>0,G60/I54,\"n/a\")","v":0}]
["Net calorific value of waste*****","MJ/kg",9.7226522583778525,10.133238031469702,10.039902197536826,9.4783634393063583,9.8217472399012848]
["Abnormal operation events","qty.",null,1,null,1,2,{"$f":"IF(G63>0,\"yes\",\"no\")","v":"yes"}]
["Abnormal operation duration","hours",null,0.5,null,0.5,1,{"$f":"+(G64)/I54","v":1.1415525114155251E-4}]
["Permit Breaches","qty.",null,1,1,null,2,{"$f":"IF(G65>0,\"yes\",\"no\")","v":"yes"}]

{"sheet":"Operational Summary","index":3,"n_rows":24,"n_cols":11,"rows_kept":24,"cut":false,"hidden":false,"merged":[[23,2,23,8],[24,2,24,8],[25,2,25,8],[4,10,9,13],[29,2,29,8],[26,2,26,8],[27,2,27,8],[28,2,28,8],[4,0,14,8],[17,10,27,13],[16,1,16,8],[17,2,17,8],[18,2,18,8],[19,2,19,8],[20,2,20,8],[21,2,21,8],[22,2,22,8]]}
[{"$f":"+'Cover Page'!$B$29","v":"Annual Performance Report 2025"},null,null,null,{"$f":"+'Cover Page'!$B$33","v":"SUEZ R&R Kirklees EfW"}]
[]
["Summary of Plant Operations and Maintenance during the reporting year",null,null,null,null,null,null,null,null,null,"Notes:"]
[]
["Operations: \n352 hours of unplanned downtime, primarily due to required mainteance fixing residues handling conveyors, and restoring power conducting necessary tests after a failure of the site UPS. Overall, the facility exceeded 100% use factor (achieving target steam set point), in spite of reduced steam thoughput in May due to reduced steam flow through the steam bypass line, requiring offline maintenance to resolve. Combustion has been good throughout the year. C14 sampling from the stack commenced in December.\n\nKey Maintenance Works:\nDuring the planned outage, superheater 3 and evaporator 2 from the horizontal boiler were replaced with new like-for-like parts. A new analyser was installed at the stack to monitor the C14 content of CO2 emitted from the process to determine fossil derived CO2 tonnage in line with anticipated future GHG permit requirements. Process imporvements were made in residues handling including addition of spray systems to mitigate plate conveyor wear.",null,null,null,null,null,null,null,null,null,"Include summary of key operational and/or maintenance activity undertaken in the year, such as any major component upgrades and/or replacements "]
[]
[]
[]
[]
[]
[]
[]
[]
[]
[]
[]
[{"$f":"+'Cover Page'!C39","v":2025},"Plant shut-downs"]
["Start date","End date","Reason for shut-down",null,null,null,null,null,null,null,"Provide a very brief reason for plant shut-down e.g. \"Shut-down prior to major outage\"; \"Emergency shut-down due to boiler tube leak\". All emergency shut-downs must be listed (irrespective of whether or not they were required to be reported to the EA). \n\nThere is no need to include periods of hot-standby here (e.g. to clear feed chute hopper blockages).\n\nFor clinical waste incinerators which require regular shut-downs for boiler cleaning, there is no need to record these here (only those prior to major outages, and emergency shut-downs). "]
["2025-03-02",{"$f":"A19+2","v":"2025-03-04"},"Grate seizure requiring offline maintenance"]
["2025-04-28","2025-05-20","Shutdown for major planned outage"]
["2025-06-03","2025-06-08","Steam bypass valve fouling requiring offline maintenance"]
["2025-07-14","2025-07-15","Waste chute blocked by lodged waste crane requiring emergency shutdown"]
["2025-08-24","2025-08-27","Bottom Ash Conveyor Chain Failure requring offline maintenance"]
["2025-10-12",{"$f":"A24+4","v":"2025-10-16"},"Emergency shutdown due to turbine trip & UPS failure"]

{"sheet":"Perf. Form 1","index":4,"n_rows":52,"n_cols":10,"rows_kept":52,"cut":false,"hidden":false,"merged":[[45,0,45,1],[47,0,47,9],[48,0,49,9],[36,0,36,9],[37,0,38,9],[41,0,41,1],[41,2,41,9],[43,0,43,1],[44,0,44,1],[34,0,34,3],[34,4,34,5],[34,7,34,8],[35,0,35,3],[35,4,35,5],[35,7,35,8],[32,0,32,3],[32,4,32,5],[32,7,32,8],[33,0,33,3],[33,4,33,5],[33,7,33,8],[31,0,31,3],[31,4,31,5],[31,7,31,8],[22,0,22,3],[22,4,22,5],[22,6,22,7],[22,8,22,9],[24,0,24,9],[25,0,26,9],[29,0,29,3],[29,7,29,8],[30,0,30,3],[30,4,30,5],[30,7,30,8],[21,0,21,3],[21,4,21,5],[21,6,21,7],[21,8,21,9],[19,0,19,1],[19,2,19,3],[19,4,19,5],[19,6,19,7],[19,8,19,9],[20,0,20,1],[20,2,20,3],[20,4,20,5],[20,6,20,7],[20,8,20,9],[17,0,17,1],[17,2,17,3],[17,4,17,5],[17,6,17,7],[17,8,17,9],[18,0,18,1],[18,2,18,3],[18,4,18,5],[18,6,18,7],[18,8,18,9],[16,0,16,9],[13,0,13,1],[13,2,13,3],[13,4,13,5],[13,6,13,7],[13,8,13,9],[14,0,14,3],[14,4,14,5],[14,6,14,7],[14,8,14,9],[15,0,15,1],[15,2,15,3],[15,4,15,5],[15,6,15,7],[15,8,15,9],[11,0,11,1],[11,2,11,3],[11,4,11,5],[11,6,11,7],[11,8,11,9],[12,0,12,1],[12,2,12,3],[12,4,12,5],[12,6,12,7],[12,8,12,9],[9,0,9,9],[10,0,10,1],[10,2,10,3],[10,4,10,5],[10,6,10,7],[10,8,10,9],[2,0,2,4],[2,6,2,8],[3,1,3,4],[5,3,5,4],[5,6,5,7],[8,0,8,1],[8,2,8,3],[8,4,8,5],[8,6,8,7],[8,8,8,9]]}
[{"$f":"+'Cover Page'!C39","v":2025}," Annual Reporting Performance Form 1"]
[]
[{"$f":"+'Cover Page'!B31","v":"Permit EPR/BJ6178IX"},null,null,null,null,"Operator: ",{"$f":"+'Cover Page'!B37","v":"Kirklees EfW"}]
["Facility:",{"$f":"+'Cover Page'!B33:I33","v":"SUEZ R&R Kirklees EfW"},null,null,null,"Form:","Performance 1"]
[]
["Reporting  Period from: ",null,null,"2025-01-01",null,"to:","2025-12-31"]
[]
[{"$f":"+A1","v":2025},"Annual Reporting of Waste Disposal and Recovery"]
["Waste Description",null,"Disposal Route(s)",null,"Disposal Tonnes",null,"Recovery Tonnes",null,"% / tonne of waste incinerated"]
["1) Hazardous Wastes"]
["APC Residues",null,null,null,4451,null,null,null,{"$f":"IF((E11+G11)>0,(E11+G11)/'Operational Data'!$G$24, \"-\")","v":3.5626810956184862E-2}]
["IBA",null,null,null,null,null,null,null,{"$f":"IF((E12+G12)>0,(E12+G12)/'Operational Data'!$G$24, \"-\")","v":"-"}]
[null,null,null,null,null,null,null,null,{"$f":"IF((E13+G13)>0,(E13+G13)/'Operational Data'!$G$24, \"-\")","v":"-"}]
[null,null,null,null,null,null,null,null,{"$f":"IF((E14+G14)>0,(E14+G14)/'Operational Data'!$G$24, \"-\")","v":"-"}]
["Total Hazardous Waste",null,null,null,{"$f":"SUM(E11:F14)","v":4451},null,{"$f":"SUM(G11:H14)","v":0},null,{"$f":"IF((E15+G15)>0,(E15+G15)/'Operational Data'!$G$24, \"-\")","v":3.5626810956184862E-2}]
[]
["2) Non-Hazardous Wastes"]
["IBA",null,null,null,24808,null,null,null,{"$f":"IF((E18+G18)>0,(E18+G18)/'Operational Data'!$G$24, \"-\")","v":0.1985688443498167}]
["Ferrous Metal",null,null,null,1994,null,null,null,{"$f":"IF((E19+G19)>0,(E19+G19)/'Operational Data'!$G$24, \"-\")","v":1.596042710551171E-2}]
["Process Water",null,null,null,null,null,null,null,{"$f":"IF((E20+G20)>0,(E20+G20)/'Operational Data'!$G$24, \"-\")","v":"-"}]
[null,null,null,null,null,null,null,null,{"$f":"IF((E21+G21)>0,(E21+G21)/'Operational Data'!$G$24, \"-\")","v":"-"}]
["Total Non-Hazardous Waste",null,null,null,{"$f":"SUM(E18:F21)","v":26802},null,{"$f":"SUM(G18:H21)","v":0},null,{"$f":"IF((E22+G22)>0,(E22+G22)/'Operational Data'!$G$24, \"-\")","v":0.21452927145532841}]
["TOTAL WASTE",null,null,null,{"$f":"+E22+E15","v":31253},null,{"$f":"+G22+G15","v":0},null,{"$f":"IF((E23+G23)>0,(E23+G23)/'Operational Data'!$G$24, \"-\")","v":0.25015608241151327}]
[]
["Operator’s comments :"]
[]
[]
[]
[{"$f":"+A1","v":2025},"Annual Reporting of Water and Other Raw Material Usage"]
["Raw Material",null,null,null,"Usage",null,"Unit","Specific Usage",null,"Unit"]
["Mains Water",null,null,null,{"$f":"+'Operational Data'!G43/1000","v":12},null,"m3",{"$f":"IF(E31>0,E31/'Operational Data'!$G$24,\"-\")","v":9.6050714777402472E-5},null,"m3/te"]
["Total Water",null,null,null,{"$f":"+'Operational Data'!G44+'Operational Data'!G43/1000","v":23349},null,"m3",{"$f":"IF(E32>0,E32/'Operational Data'!$G$24,\"-\")","v":0.18689067827813086},null,"m3/te"]
["Urea",null,null,null,{"$f":"+'Operational Data'!G46","v":76300},null,"kg",{"$f":"IF(E33>0,E33/'Operational Data'!$G$24,\"-\")","v":0.6107224614596507},null,"kg/te"]
["Activated Carbon",null,null,null,{"$f":"+'Operational Data'!G47","v":46160},null,"kg",{"$f":"IF(E34>0,E34/'Operational Data'!$G$24,\"-\")","v":0.36947508284374148},null,"kg/te"]
["Lime / hydrated lime / Sodium Bicarb.",null,null,null,{"$f":"+'Operational Data'!G48","v":980040},null,"kg",{"$f":"IF(E35>0,E35/'Operational Data'!$G$24,\"-\")","v":7.8444618758704596},null,"kg/te"]
[]
["Operator’s comments :"]
[]
[]
[]
[{"$f":"+A29","v":2025},"Annual Reporting of other performance indicators "]
["Parameter",null,"Results by Line"]
[null,null,"A1","A2","A3","A4","A5",null,"Turbine 1","Turbine 2"]
["Operating hours for the year, hours",null,7699,null,null,null,null,null,7435]
["Number of periods of abnormal operation, qty.",null,3]
["Cumulative hours of abnormal operation for this year, hours",null,1]
[]
["Operator’s comments :"]
[]
[]
[]
["Signed: ",null,null,null,null,null,"Date:"]

{"sheet":"Energy Form 1","index":5,"n_rows":24,"n_cols":7,"rows_kept":24,"cut":false,"hidden":false,"merged":[[14,0,14,2],[14,3,14,4],[14,6,14,8],[16,0,16,8],[17,0,19,8],[13,0,13,2],[13,3,13,4],[13,6,13,8],[11,0,11,2],[11,3,11,4],[11,6,11,8],[12,0,12,2],[12,3,12,4],[12,6,12,8],[9,0,9,2],[9,3,9,4],[9,6,9,8],[10,0,10,2],[10,3,10,4],[10,6,10,8],[2,6,2,8],[4,1,4,4],[6,3,6,4],[6,6,6,7],[8,0,8,2],[8,3,8,4],[8,6,8,8]]}
[{"$f":"+'Cover Page'!C39","v":2025}," Annual Reporting of Energy Usage/Export"]
[]
[{"$f":"+'Cover Page'!B31","v":"Permit EPR/BJ6178IX"},null,null,null,null,"Operator: ",{"$f":"+'Cover Page'!B37","v":"Kirklees EfW"}]
[]
["Facility:",{"$f":"+'Cover Page'!B33:I33","v":"SUEZ R&R Kirklees EfW"},null,null,null,"Form:","Energy 1"]
[]
["Reporting  Period from: ",null,null,{"$f":"+'Perf. Form 1'!D6:E6","v":"2025-01-01"},null,"to:",{"$f":"+'Perf. Form 1'!G6:H6","v":"2025-12-31"}]
[]
["Energy Source",null,null,"Energy Usage",null,"Unit","Specific Usage (KWh/tonne incinerated"]
["Electricity Produced",null,null,{"$f":"+'Operational Data'!G27","v":74276},null,"MWh",{"$f":"+'Operational Data'!H27","v":594.52190756719551}]
["Electricity Imported   ",null,null,{"$f":"+'Operational Data'!G29","v":904.45999999999992},null,"MWh",{"$f":"+'Operational Data'!H29","v":7.2395024572974522}]
["Electricity Exported",null,null,{"$f":"+'Operational Data'!G28","v":64838.899999999994},null,"MWh",{"$f":"+'Operational Data'!H28","v":518.98522419837673}]
["Gas Oil",null,null,null,null,"tonnes"]
["Steam/hot water exported",null,null,{"$f":"+'Operational Data'!G31","v":0},null,"GWh",{"$f":"+'Operational Data'!H31","v":"-"}]
[]
[]
["Operator’s comments :"]
[]
[]
[]
[]
[]
[]
["Signed: ",null,null,null,null,null,"Date:"]

{"sheet":"Public Liasion","index":6,"n_rows":29,"n_cols":5,"rows_kept":29,"cut":false,"hidden":false,"merged":[[22,0,22,1],[22,2,22,8],[16,0,17,1],[16,2,17,8],[18,0,19,1],[18,2,19,8],[21,0,21,8],[25,0,26,1],[25,2,26,8],[28,0,28,8],[23,0,24,1],[23,2,24,8],[5,0,5,1],[5,2,5,8],[6,0,7,1],[6,2,7,8],[14,0,15,1],[14,2,15,8],[8,0,9,1],[8,2,9,8],[10,0,11,1],[10,2,11,8],[12,0,13,1],[12,2,13,8]]}
[{"$f":"+'Cover Page'!$B$29","v":"Annual Performance Report 2025"},null,null,null,{"$f":"+'Cover Page'!$B$33","v":"SUEZ R&R Kirklees EfW"}]
[]
["Details of Public & Stakeholder Liaison"]
[]
["Summary of events held during the reporting year."]
["Date",null,"Description"]
["2025-02-12",null,"Council Tour of EFW & Q&A session"]
[]
["2025-06-04",null,"Huddersfield & Calderdale tour of EFW"]
[]
["2025-06-25",null,"WYCA tour of EfW"]
[]
["2025-06-26",null,"School Visit - talk & Q&A with Hillside Primary School"]
[]
["2025-09-11",null,"Council & Public Tour of EFW & Q&A session"]
[]
["2025-10-30",null,"Educational tour & Q&A session with Business Management Degree Students"]
[]
["2025-11-17",null,"Educational tour & Q&A session with Huddersfield University Students"]
[]
[]
["List of events planned for next year"]
["Date",null,"Description"]
["Not yet booked in",null,"Aspirations day” at Mount Pleasant school Huddersfield."]
[]
[]
[]
[]
["If you wish to be involved in the public liaison programme, please contact __Mark Ryan (EfW Site Manger)_______________"]

{"sheet":"Permit Compliance","index":7,"n_rows":27,"n_cols":12,"rows_kept":27,"cut":false,"hidden":false,"merged":[[14,0,14,1],[14,2,14,4],[14,5,14,8],[8,11,20,11],[25,0,25,10],[18,0,18,10],[23,1,23,2],[24,0,24,8],[19,7,19,8],[19,1,19,2],[19,3,19,5],[21,3,21,5],[22,3,22,5],[23,3,23,5],[21,1,21,2],[28,1,28,3],[28,4,28,6],[28,7,28,9],[15,0,15,1],[16,2,16,4],[16,5,16,8],[15,2,15,4],[15,5,15,8],[16,0,16,1],[27,1,27,3],[27,4,27,6],[27,7,27,9],[22,1,22,2],[26,1,26,3],[26,4,26,6],[26,7,26,9],[7,0,7,1],[7,2,7,8],[8,0,8,1],[8,2,8,4],[8,5,8,8],[29,4,29,8],[9,0,9,1],[9,2,9,4],[9,5,9,8],[10,0,10,1],[10,2,10,4],[10,5,10,8],[11,0,11,1],[11,2,11,4],[11,5,11,8],[12,0,12,1],[12,2,12,4],[12,5,12,8],[13,0,13,1],[13,2,13,4],[13,5,13,8]]}
[{"$f":"+'Cover Page'!$B$29","v":"Annual Performance Report 2025"},null,null,null,{"$f":"+'Cover Page'!$B$33","v":"SUEZ R&R Kirklees EfW"}]
[]
["Summary of Permit Compliance"]
[]
["Compliance with permit limits for continuously monitored pollutants"]
[]
["The plant met its emission limits as shown in the table below:"]
["Substance",null,"Percentage time compliant during operationNote 1",null,null,null,null,null,null,null,null,"Notes:"]
[null,null,"Half-hourly limit",null,null,"Daily limit",null,null,null,null,null,"Note 1: Please report to 2 decimal places, i.e. xx.xx%\n\nNote 2: Please enter into this table any permit non-compliances that the EA has given a CCS score for. Please also enter any other non-compliances which you have notified to the EA (e.g. ELV exceedances) but which have not yet been assessed by the EA. There is no need to enter any notifications which were subsequently assessed by the EA not to be permit breaches.  \n\nNote 3: Please enter information here (rather than just referencing the notifications that were sent to the EA) including where relevant the incineration line reference, pollutant and value of the measured result for any ELV exceedances.   \n\n"]
["Particulates",null,1,null,null,1]
["Oxides of nitrogen",null,1,null,null,1]
["Sulphur dioxide",null,1,null,null,1]
["Carbon monoxide",null,"100.00% 95% of 10-min averages",null,null,1]
["Total organic carbon",null,1,null,null,1]
["Hydrogen chloride",null,0.99980000000000002,null,null,1]
["Hydrogen fluoride",null,"NA",null,null,"NA"]
[null,null,"xx.xx %",null,null,"xx.xx %"]
[]
["Summary of non-compliances under the permit Note 2"]
["Date","Summary of non-compliance Note 3",null,"Reason ",null,null,"Measures taken to prevent reoccurrence","CCS score if applicable*"]
[null,null,null,null,null,null,null,"Impact","Root cause"]
["19/06/2025     SKL003","HCL Breech 153mg-Nm3. Limit 20mg/Nm3",null,"The plastic waste that we believe caused the spike in HCl emissions was traced to delivery from our main client Kirklees council.  The waste was tipped on the tipping hall floor then pushed into the waste pit. This was then fed to the furnace without sufficient mixing. Around 1 hour later the HCl emissions started to rise quickly. The abatement system was taken into hand and the lime slurry increased through the atomiser to reduce emissions as far as possible. The furnace cut off gate was shut, waste feeding stopped. Burners were put into service to support furnace temperature above 850 degree. ",null,null,"Identify where this waste was collected from with the aid of Kirklees council. Communicate this with all operational staff to ensure this waste is segregated and processed before it enters the waste pit.","CCS4","CCS4"]
["01/09/2025     SKL007","Dioxins & Furans (NATO I-TEQ) 0.2309ng-m3. Limit 0.06ng/m3",null,"Bi-annual periodic stack test carried out on 1/9/25 including Dioxins, result received back exceeding limit at 0.2309ng/m3.\n3 days prior to the Dioxin testing (29th Aug) the plant experienced a power blackout due to a surge from the national grid. This tripped all combustion fans which dropped the temperature within the furnace for a short period.  \nOn the days of testing, no issues were experienced with combustion or temperatures within the furnace / 1st pass. Carbon dosed under normal operating conditions. \nFollowing an investigations it was identified that there was a partial blockage of the hot end of the horizontal pass. This has a potential to create pockets of cooling of the flue gas.",null,null,"•\tThis blockage has been monitored consistently\n•\tBlockage removed .\n•\tDioxins retested 25-26/10/25, as required in EA  Instruction: LIT 59746 (Dioxins & Furans limit exceedance).\n•\tRetest results for Dioxins & Furans (NATO I-TEQ) received with a result of 0.0257 & 0.0180, w ell within the compliance limit of 0.06ng/m3","CCS3"]
["21/05/2025         SKL002","NH3 21.4mg-Nm3. Limit 15mg/Nm3",null,"Operator attempted to close in the urea control valve to reduce flow but this had no effect on the total flow.\nLocally the Urea control valve was isolated and the bypass opened to reduce Urea flow. This brought NH3 emissions within limits. \nTemporary operating instruction used to inform shift teams of using the bypass to control Urea flow & work order raised for investigation. Urea control valve found to have it’s proportional band adjustment loose inside the valve bonnet. This was tightened and recalibrated for correct positioning. The dilution water pipework to the Urea system found to be fouled – presuming from the outage. Pipework fouling removed. System checked for control and left in service. Temporary operating instruction cancelled.",null,null,"Amend the maintenance PM to add instruction to check valve proportional band adjustment & security of fitting"]
["*If the Environment Agency (EA) has given a Compliance Classification Scheme (CCS) score due to a permit non-compliance it should be entered here (CCS4 = No impact; CCS3 = Minor impact; CCS2 = Significant impact; CCS1 = Major impact). If the EA has not yet assessed a non-compliance which you have notified to them, these columns should be left blank. Enter N/A if no score was given for the root cause.  "]
["Summary of any complaints received and actions to taken to resolve them."]
["Date","Summary of complaint [including Line/Reference]",null,null,"Reason (including whether substantiated by the operator or the EA)",null,null,"Measures taken to prevent reoccurrence"]

{"sheet":"Improvements","index":8,"n_rows":19,"n_cols":5,"rows_kept":19,"cut":false,"hidden":false,"merged":[[17,0,17,8],[18,0,20,8],[4,0,4,8],[5,0,7,8],[9,0,9,8],[10,0,11,8],[13,0,13,8],[14,0,15,8]]}
[{"$f":"+'Cover Page'!$B$29","v":"Annual Performance Report 2025"},null,null,null,{"$f":"+'Cover Page'!$B$33","v":"SUEZ R&R Kirklees EfW"}]
[]
["Summary of Plant Improvements"]
[]
["Summary of any efficiency improvements that have been completed within the year."]
["Improved operation of the steam bypass valve (since internal overhaul in June 2025) has increased the volume of steam to the turbine, increasing the generation of electricity, and improving site efficiency."]
[]
[]
[]
["Summary of any permit improvement conditions that have been completed within the year and the resulting environmental benefits."]
["Not applicable"]
[]
[]
["Summary of any changes to the plant or operating techniques which required a variation to the permit and a summary of the resulting environmental impact."]
["Not applicable"]
[]
[]
["Summary of any other improvements made to the plant or planned to be made and a summary of the resulting environmental benefits."]
["Maintenance conducted on bag filter structre through the application of a ceramic lining to improve dust & dioxin abatement capabilities, as well as increasing asset lifecycle."]

{"sheet":"CO2 N2O","index":9,"n_rows":25,"n_cols":6,"rows_kept":25,"cut":false,"hidden":false,"merged":[[22,2,22,3],[25,1,25,3],[16,2,16,3],[4,0,4,3],[9,0,9,3],[17,0,17,3],[13,0,13,3],[12,0,12,1],[8,2,8,3],[11,2,11,3],[19,2,19,3]]}
[{"$f":"+'Cover Page'!$B$29","v":"Annual Performance Report 2025"},null,{"$f":"+'Cover Page'!$B$33","v":"SUEZ R&R Kirklees EfW"}]
[]
["Carbon dioxide emissions and biogenic content of waste inputs",null,null,null,null,"Notes:"]
[]
["Carbon dioxide emissions (all types of plant)"]
[null,"Annual mass of carbon dioxide released","tonnes ",126146.79994368358]
[null,"Annual mass of carbon dioxide released per tonne of waste burned","t CO2 / t waste ",{"$f":"D6/'Operational Data'!G24","v":1.0097075251227334}]
[null,"Annual mass of carbon dioxide released per MWh of energy exported","t CO2 / MWh export ",{"$f":"D6/'Operational Data'!G28","v":1.9455419500282021}]
[null,"Description of how annual carbon dioxide mass emission has been calculated. \nSee Note 1","Directly from CEMS data",null,null,"Note 1: All permits require operators to continuously monitor CO2 to EN14181 and flow to BS EN 16911-2 (unless otherwise agreed in writing). Operators must therefore use the results from these instruments to calculate their annual CO2 emissions. Where an operator does not have a flow meter calibrated to BS EN 16911-2, the averaged flow measurement from that year's periodic monitoring can be used instead. If the plant does not have calibrated CO2 CEMS, a suitably justified emissions factor can be used. \n\n"]
["Nitrous oxide emissions (only plants which use ammonia or urea to abate NOx emissions)"]
[null,"Annual mass emissions of nitrous oxide","tonnes N2O",2.3464910118500293]
[null,"Description of how annual nitrous oxide mass emission has been calculated\nSee Note 2","Direct from CEMS data",null,null,"Note 2: All permits require operators to continuously monitor N2O to EN14181 and flow to BS EN 16911-2, unless otherwise agreed in writing. Operators must therefore use the results from these instruments to calculate their annual N2O emissions. Where an operator does not have a flow meter calibrated to BS EN 16911-2, the averaged flow measurement from periodic monitoring can be used instead. If the plant does not have calibrated N2O CEMS, data from periodic monitoring or a suitably justified emissions factor can be used instead."]
["Total annual carbon dioxide + nitrous oxide emissions. \nSee Note 3. ",null,"tonnes CO2e",{"$f":"D11*265+D6","v":126768.62006182384},null,"Note 3: Total annual carbon dioxide and nitrous oxide emissions reported as carbon dioxide equivalent where 1 tonne nitrous oxide is equivalent to 265 tonnes carbon dioxide."]
["Biogenic CO2 emissions (See Note 4)",null,null,null,null,"Note 4: Only plants combusting residual municipal waste, refuse derived fuel or solid recovered fuel need complete this section. "]
[null,"Percentage of total carbon dioxide emissions arising from biogenic waste","%",0.5726]
[null,"No. of measurements undertaken","Number",1]
[null,"Description of how percentage biogenic carbon dioxide emissions have been measured or calculated.\nSee Note 5","Assessed from breakdown of waste composition from thrid party reporting (M.E.L.) and the representative carbon content of each component. \nFrom 2026 onwards, site will use C14 sampling at the stack to determine the biogenic fraction.",null,null,"Note 5: The results from C14 sampling should be used if this is carried out at the plant (either via an installed sampler or from spot samples).  \nOtherwise, as an approximation (and in lieu of any more accurate metrics which may be developed in future), the measured or estimated biogenic fraction by net calorific value (see Note 6) can be assumed to be the same as the biogenic CO2 fraction of the total CO2 emissions from the plant. "]
["Biogenic fraction of waste feedstock (See Note 4)"]
[null,"Yearly average biogenic percentage of the waste by net calorific value (NCV)","%",0.47699999999999998]
[null,"Description of how biogenic percentage (by NCV) has been calculated or estimated. \nSee Note 6","Assessed from breakdown of waste composition from thridparty reporting (M.E.L.) and the representative carbon content of each component. \n",null,null,"Note 6: If C14 sampling is carried out at the plant, the methodology set out in the embedded document entitled \"Renewable Energy Association Energy Content of Fuels - Description of Method\" embedded below can be used to calculate the biogenic percentage by net calorific value. Otherwise, data from waste sampling or BIOMA software can be used; or if none of these are available, an estimated figure with justification or a figure assumed on the basis of up-to-date industry data can be used. "]
[null,"Yearly average biogenic percentage of the waste by mass","%",{"$f":"D15","v":0.5726}]
[null,"If waste sampling undertaken, no. of samples used to ascertain average biogenic percentages above.","Number",1]
[null,"Description of how biogenic percentage (by mass) has been calculated or estimated. \nSee Note 7",null,null,null,"Note 7: Where available, data from waste sampling should be used; otherwise, an estimated figure with justification can be used, or a figure assumed on the basis of up-to-date industry data. "]
[]
[null,"Comments:"]

{"sheet":"Residues","index":10,"n_rows":36,"n_cols":11,"rows_kept":36,"cut":false,"hidden":false,"merged":[[36,0,37,6],[32,3,32,4],[35,0,35,6],[27,0,28,1],[29,0,29,1],[30,0,30,1],[31,0,31,1],[32,0,32,1],[29,3,29,4],[30,3,30,4],[29,5,29,6],[30,5,30,6],[31,5,31,6],[32,5,32,6],[33,0,33,6],[31,3,31,4],[27,2,28,2],[28,3,28,4],[28,5,28,6],[27,3,27,6],[26,0,26,6],[23,0,24,1],[23,2,24,6],[4,0,11,8],[4,10,10,13],[21,0,21,6],[22,0,22,1],[22,2,22,6],[16,0,17,6],[18,0,19,6]]}
[{"$f":"+'Cover Page'!$B$29","v":"Annual Performance Report 2025"},null,null,null,{"$f":"+'Cover Page'!$B$33","v":"SUEZ R&R Kirklees EfW"}]
[]
["Summary of Residue Handling for the reporting year"]
[]
["Several instances of boiler ash pan failures have been resolved in 2025, one requiring offline maintenance due to the failure of the conveyor chain as well as damaged conveyor pans.\nSince September, considerable improvements have been made in identifying and rectifying damaged bottom ash pans due to improved operator training and implementation of gearbox hydraulic pressure alarms. This has reduced downtime due to an instance of pan failure by 7 fold.\nImprovements to the apron plate conveyor cleaning mechnisms aims to increase the lifetime of the APC chain, reducing the liklihood of conveyor failure, thus maintaining site's ability to send bottom ash for reuse.\nBurnout quality has been excellent, with 0 IBA exceedances and APCR continues to be taken off-site by Castle Environmental. Ferrous metals are separated on-site and sent for recycling.",null,null,null,null,null,null,null,null,null,"Include in here a summary of residue handling regimes and destinations "]
[]
[]
[]
[]
[]
[]
[]
[]
["Residue Quality Monitoring Requirements"]
[]
["Summary of monitoring undertaken and compliance"]
["Quarterly IBA & APCR samples takien on line 1"]
[]
["Weeekly hazard assessment carried out on line 1"]
[]
[]
["Commentary on any specific events"]
["Date & Event",null,"Description"]
[]
[]
[]
["Residue Quality Monitoring Results"]
["Parameter (unit) ",null,"Limit*","Normal Operation "]
[null,null,null,"Bottom ash  ",null,"APC Residues"]
["Loss on Ignition (average %)",null,"<5%","N/A"]
["Total Organic Carbon (average %)",null,"<3%",0.63700000000000001]
["No. of Assessments Undertaken",null,"---","4 samples taken per year",null,"4 samples taken per year"]
["No. of Hazardous Results",null,"---","Weekly samples "]
["* The permit will specify a limit of either 5% loss on ignition or 3% total organic carbon. If both are measured anyway, please enter the results here, even where the limit does not apply. "]
[]
["Comments :"]

{"sheet":"Water","index":11,"n_rows":19,"n_cols":9,"rows_kept":19,"cut":false,"hidden":false,"merged":[[21,0,21,2],[21,3,21,4],[20,0,20,2],[20,3,20,4],[19,0,19,2],[19,3,19,4],[17,0,17,8],[18,0,18,2],[18,3,18,4],[12,0,13,1],[12,2,13,8],[14,0,15,1],[14,2,15,8],[5,0,6,8],[7,0,8,8],[10,0,10,8],[11,0,11,1],[11,2,11,8]]}
[{"$f":"+'Cover Page'!$B$29","v":"Annual Performance Report 2025"},null,null,null,{"$f":"+'Cover Page'!$B$33","v":"SUEZ R&R Kirklees EfW"}]
[]
["Emissions to Water"]
[]
["Summary of monitoring undertaken and compliance"]
["No Water sampling carried out at Kirklees "]
[]
[]
[]
[]
["Commentary on any specific events"]
["Date & Event",null,"Description"]
[]
[]
[]
[]
[]
["Emissions to Water / Sewer"]
["Parameter",null,null,"Monitoring Frequency",null,"Limit","Target","Max.","Average"]

{"sheet":"Air (periodic)","index":12,"n_rows":39,"n_cols":11,"rows_kept":39,"cut":false,"hidden":false,"merged":[[13,10,14,12],[15,10,16,10],[15,11,16,11],[15,12,16,12],[18,3,18,4],[13,3,13,4],[14,3,14,4],[15,3,15,4],[16,3,16,4],[17,3,17,4],[21,3,21,4],[22,3,22,4],[23,3,23,4],[24,3,24,4],[31,3,31,4],[25,3,25,4],[26,3,26,4],[28,3,28,4],[38,0,38,9],[19,0,19,1],[20,0,20,1],[21,0,21,1],[34,3,34,4],[35,3,35,4],[33,0,33,1],[34,0,34,1],[35,0,35,1],[36,0,36,1],[24,0,24,1],[32,3,32,4],[27,3,27,4],[33,3,33,4],[19,3,19,4],[20,3,20,4],[39,0,39,9],[25,0,25,1],[26,0,26,1],[22,0,22,1],[23,0,23,1],[37,0,37,1],[27,0,27,1],[28,0,28,1],[29,0,29,1],[30,0,30,1],[31,0,31,1],[32,0,32,1],[37,3,37,4],[29,3,29,4],[30,3,30,4],[36,3,36,4],[16,0,16,1],[17,0,17,1],[18,0,18,1],[13,0,13,1],[14,0,14,1],[15,0,15,1],[12,0,12,1],[11,3,11,4],[12,3,12,4],[9,0,10,1],[9,5,9,9],[9,3,10,4],[9,2,10,2],[5,10,8,13],[9,10,11,13],[8,0,8,9],[5,0,6,9],[11,0,11,1]]}
[{"$f":"+'Cover Page'!$B$29","v":"Annual Performance Report 2025"},null,null,null,{"$f":"+'Cover Page'!$B$33","v":"SUEZ R&R Kirklees EfW"}]
[]
["Emissions to Air (periodically monitored)"]
[]
["Summary of monitoring undertaken, standards used and compliance",null,null,null,null,null,null,null,null,null,"Notes:"]
["Periodic testing carried out biannually . There was 1 non-compliances identified during ths 2nd visit, this was for Dioxins. ",null,null,null,null,null,null,null,null,null,"Template may require adjustment for any bespoke monitoring requirements of permit - please also check that all default ELV values, reference periods and the stated oxygen reference value match those for your plant, and edit if necessary!"]
[]
[]
["Results of emissions to air that are periodically monitored - oxygen reference 11% "]
["Substance",null,"Ref. Period","Emission Limit Value",null,"Average",null,null,null,null,"User to add additional tables as necessary, depending on whether quarterly or bi-annual reporting is required for the compliance year"]
[null,null,null,null,null,"A1","A2","A3","A4","A5"]
["Hydrogen fluoride",null,"1 hr","1 mg/m3",null,0.26]
["Cd and Tl and their compounds",null,"0.5-8hrs","0.02 mg/m3",null,1E-3]
["Hg and its compounds",null,"0.5-8hrs","0.02 mg/m3",null,4.0000000000000002E-4]
["Sb, As, Pb, Cr, Co, Cu, Mn, Ni, V and their compounds",null,"0.5-8hrs","0.3 mg/m3",null,0.13]
["Dioxins & Furans (I-TEQ)",null,"6-8hrs","0.06 ng/m3",null,0.23089999999999999]
["PCBs (WHO-TEQ Humans / Mammals)",null,"6-8hrs","None set ng/m3",null,1.0709E-2]
["PCBs (WHO-TEQ Fish)",null,"6-8hrs","None set ng/m3",null,3.7599999999999998E-4]
["PCBs (WHO-TEQ Birds)",null,"6-8hrs","None set ng/m3",null,1.0442999999999999E-2]
["Dioxins & Furans (WHO-TEQ Humans / Mammals)",null,"6-8hrs","None set ng/m3",null,0.20610000000000001]
["Dioxins & Furans (WHO-TEQ Fish)",null,"6-8hrs","None set ng/m3",null,0.2344]
["Dioxins & Furans (WHO-TEQ Birds)",null,"6-8hrs","None set ng/m3",null,0.33019999999999999]
["Anthanthrene",null,"6-8hrs","None set µg/m3",null,"<0.002"]
["Benzo(a)anthracene",null,"6-8hrs","None set µg/m3",null,2E-3]
["Benzo(a)pyrene",null,"6-8hrs","None set µg/m3",null,"<0.002"]
["Benzo(b)fluoranthene",null,"6-8hrs","None set µg/m3",null,2E-3]
["Benzo(b)naptho(2,1-d) thiophene",null,"6-8hrs","None set µg/m3",null,"<0.002"]
["Benzo(c)phenanthrene",null,"6-8hrs","None set µg/m3",null,"<0.002"]
["Benzo(ghi)perylene",null,"6-8hrs","None set µg/m3",null,8.9999999999999993E-3]
["Benzo(k)fluoranthene",null,"6-8hrs","None set µg/m3",null,"<0.002"]
["Cholanthrene",null,"6-8hrs","None set µg/m3",null,"<0.002"]
["Chrysene",null,"6-8hrs","None set µg/m3",null,5.0000000000000001E-3]
["Cyclopenta(cd)pyrene",null,"6-8hrs","None set µg/m3",null,"<0.002"]
["Dibenzo(ai)pyrene",null,"6-8hrs","None set µg/m3",null,"<0.002"]
["Dibenzo(ah)anthracene",null,"6-8hrs","None set µg/m3",null,"<0.002"]
["Fluoranthene",null,"6-8hrs","None set µg/m3",null,0.06]
["Indeno(123-cd) pyrene",null,"6-8hrs","None set µg/m3",null,"<0.002"]
["Naphthalene",null,"6-8hrs","None set µg/m3",null,0.3]
["Comments :"]

{"sheet":"Air (CEMS)","index":13,"n_rows":27,"n_cols":14,"rows_kept":27,"cut":false,"hidden":false,"merged":[[27,0,28,12],[12,0,13,0],[5,0,6,12],[7,0,7,12],[9,0,9,12],[10,0,11,0],[10,2,11,2],[10,1,11,1],[10,3,10,4],[10,5,10,6],[10,7,10,8],[10,9,10,10],[10,11,10,12],[13,13,14,13],[13,14,14,14],[13,15,14,15],[11,13,12,15],[25,0,25,12]]}
[{"$f":"+'Cover Page'!$B$29","v":"Annual Performance Report 2025"},null,null,null,null,null,null,null,{"$f":"+'Cover Page'!$B$33","v":"SUEZ R&R Kirklees EfW"}]
[]
["Emissions to Air (continuously monitored)"]
[null,null,null,null,null,null,null,null,null,null,null,null,null,"Notes:"]
["Summary of monitoring undertaken, standards used and compliance",null,null,null,null,null,null,null,null,null,null,null,null,"Template may require adjustment for any bespoke monitoring requirements of permit"]
["The CEMS set up comprises a multigas analyser, FID analyser and oxygen probe for extractive sampling where flue gases are drawn continuously via a heated line to the analysers in the CEMS room for each incineration line. In situ sampling i.e. where the probes are installed directly into the flue gas flow in the stack is for the dust probes only. The set up for the duty analysers is mirrored by the standby analysers. The standby analysers can be switched between incineration Lines  as required. Continuous monitoring is provided by the CEMS as required by the permit. The CEMS are installed in accordance with EN14181 and relevant Environment Agency guidance.",null,null,null,null,null,null,null,null,null,null,null,null,"Please check that all default ELV values match those for your plant and edit if necessary!"]
[null,null,null,null,null,null,null,null,null,null,null,null,null,"Report to 1 decimal place"]
[]
[]
["Results of emissions to air that are continuously monitored (maximum and average values for each line) - oxygen reference 11%"]
["Substance","Reference Period","Emission Limit Value","A1",null,"A2",null,"A3",null,"A4",null,"A5"]
[null,null,null,"Max.","Avg.","Max.","Avg.","Max.","Avg.","Max.","Avg.","Max.","Avg."]
["Oxides of nitrogen","Daily mean","180 mg/m3 ",{"$f":"NOx!O19","v":167.2},{"$f":"NOx!N19","v":147.52500000000001}]
[null,"½ hourly mean","400 mg/m3 ",{"$f":"NOx!M19","v":218.2},{"$f":"NOx!L19","v":147.52500000000001}]
["Particulates","Daily mean","5 mg/m3",{"$f":"Particulates!O19","v":4.5},{"$f":"Particulates!N19","v":2.8166666666666669}]
[null,"½ hourly mean","30 mg/m3 ",{"$f":"Particulates!M19","v":15.8},{"$f":"Particulates!L19","v":2.8166666666666669}]
["Total Organic Carbon ","Daily mean","10 mg/m3 ",{"$f":"TOC!O19","v":10.4},{"$f":"TOC!N19","v":0.38333333333333336}]
[null,"½ hourly mean","20 mg/m3 ",{"$f":"TOC!M19","v":96.7},{"$f":"TOC!L19","v":0.38333333333333336}]
["Hydrogen chloride ","Daily mean","8 mg/m3 ",{"$f":"HCl!O19","v":6.4},{"$f":"HCl!N19","v":1.783333333333333}]
[null,"½ hourly mean","60 mg/m3 ",{"$f":"HCl!M19","v":153.5},{"$f":"HCl!L19","v":1.8181818181818179}]
["Sulphur dioxide","Daily mean","40 mg/m3 ",{"$f":"'SO2'!O19","v":24.8},{"$f":"'SO2'!N19","v":6.9666666666666659}]
[null,"½ hourly mean","200 mg/m3 ",{"$f":"'SO2'!M19","v":301.89999999999998},{"$f":"'SO2'!L19","v":6.9999999999999991}]
["Carbon monoxide ","Daily mean","50 mg/m3 ",{"$f":"'CO 95% 10 min'!Q22","v":162.69999999999999},{"$f":"'CO 95% 10 min'!P22","v":29.258333333333329}]
[null,"95%ile 10-min avg *","150 mg/m3 *",{"$f":"'CO 95% 10 min'!M22","v":105.84166666666665}]
[" Ammonia","Daily mean","15 mg/m3 ",{"$f":"'NH3'!O19","v":21.4},{"$f":"'NH3'!N19","v":7.1416666666666657}]
["* = delete as appropriate, depending on whether your plant has half-hourly or 10-min CO ELVs\n"]
["Comments :"]

{"sheet":"HCl","index":14,"n_rows":48,"n_cols":17,"rows_kept":48,"cut":false,"hidden":false,"merged":[[12,16,15,18],[4,9,4,14],[4,1,4,3],[4,4,4,6],[48,0,51,6],[47,0,47,6],[6,9,18,9],[3,16,7,18],[9,16,11,18],[18,4,18,6]]}
[{"$f":"+'Cover Page'!$B$29","v":"Annual Performance Report 2025"},null,null,null,{"$f":"+'Cover Page'!$B$33","v":"SUEZ R&R Kirklees EfW"}]
[]
["Monitoring of Hydrogen Chloride emissions",null,null,"Whole Installation",null,null,"See  Notes in Cell Q3",null,null,{"$f":"+A3","v":"Monitoring of Hydrogen Chloride emissions"},null,null,null,"Per Combustion Line",null,null,"Notes:"]
[null,null,null,null,null,null,null,null,null,null,null,null,null,null,null,null,"User to add logic to complete Whole installation, Table A5:G18. From the data in Per Combustion Line, Table J6:O79, subject to No. of lines installed"]
[{"$f":"+'Cover Page'!C39","v":2025},"1/2 Hourly Reference Periods",null,null,"Daily Reference Periods"]
["mg/Nm3","1/2 hourly HCl ELV","Monthly mean of half-hourly averages","Highest half- hourly average","Daily HCl ELV","Monthly mean of  daily averages","Highest daily average",null,null,{"$f":"+A5","v":2025},"mg/Nm3","Monthly mean of half-hourly averages","Highest half- hourly average","Monthly mean of  daily averages","Highest daily average"]
["Jan",60,{"$f":"AVERAGE(L7,L22,L37,L52,L67)","v":2.4},{"$f":"MAX(M7,M22,M37,M52,M67)","v":6.7},8,{"$f":"AVERAGE(N7,N22,N37,N52,N67)","v":2.4},{"$f":"MAX(O7,O22,O37,O52,O67)","v":2.9},null,null,"A1","Jan",2.4,6.7,2.4,2.9]
["Feb",60,{"$f":"AVERAGE(L8,L23,L38,L53,L68)","v":2.2000000000000002},{"$f":"MAX(M8,M23,M38,M53,M68)","v":8.5},8,{"$f":"AVERAGE(N8,N23,N38,N53,N68)","v":2.2000000000000002},{"$f":"MAX(O8,O23,O38,O53,O68)","v":2.7},null,null,null,"Feb",2.2000000000000002,8.5,2.2000000000000002,2.7]
["Mar",60,2.2999999999999998,17.600000000000001,8,2.2999999999999998,3.6,null,null,null,"Mar",2.2999999999999998,17.600000000000001,2.2999999999999998,3.6,null,"Whole Installation table A5:G18:"]
["Apr",60,2.5,61.6,8,2.5,4.9000000000000004,null,null,null,"Apr",2.5,61.6,2.5,4.9000000000000004,null,"Mean: for 1/2 hourly and daily periods calculate mean of values across all operational combustion lines for the month"]
["May",60,0.6,3.3,8,0.6,1.2,null,null,null,"May",0.6,3.3,0.6,1.2]
["Jun",60,1.7,153.5,8,1.7,6.4,null,null,null,"Jun",1.7,153.5,1.7,6.4]
["Jul",60,1.6,7.4,8,1.6,2.2999999999999998,null,null,null,"Jul",1.6,7.4,1.6,2.2999999999999998,null,"Maximum: for 1/2 hourly and daily periods use the highest value across all operational combustion lines for the month"]
["Aug",60,2,6.1,8,2,2.9,null,null,null,"Aug",2,6.1,2,2.9]
["Sep",60,1.5,6.5,8,1.5,2.2999999999999998,null,null,null,"Sep",1.5,6.5,1.5,2.2999999999999998]
["Oct",60,1.5,71.900000000000006,8,1.5,3.5,null,null,null,"Oct",1.5,71.900000000000006,1.5,3.5]
["Nov",60,1.7,57.7,8,1.7,3.4,null,null,null,"Nov",1.7,57.7,1.7,3.4]
["Dec",60,{"$error":"#DIV/0!"},11.2,8,1.4,2.4,null,null,null,"Dec","1,4",11.2,1.4,2.4]
[null,null,null,null,null,null,null,null,null,null,"Annual",{"$f":"AVERAGE(L7:L18)","v":1.8181818181818179},{"$f":"MAX(M7:M18)","v":153.5},{"$f":"AVERAGE(N7:N18)","v":1.783333333333333},{"$f":"MAX(O7:O18)","v":6.4}]
[]
[]
[]
[]
[]
[]
[]
[]
[]
[]
[]
[]
[]
[]
[]
[]
[]
[]
[]
[]
[]
[]
[]
[]
[]
[]
[]
[]
["Comments :"]

{"sheet":"SO2","index":15,"n_rows":48,"n_cols":17,"rows_kept":48,"cut":false,"hidden":false,"merged":[[47,0,47,6],[48,0,51,6],[18,4,18,6],[3,16,7,18],[9,16,11,18],[12,16,15,18],[4,1,4,3],[4,4,4,6],[4,9,4,14],[6,9,18,9]]}
[{"$f":"+'Cover Page'!$B$29","v":"Annual Performance Report 2025"},null,null,null,{"$f":"+'Cover Page'!$B$33","v":"SUEZ R&R Kirklees EfW"}]
[]
["Monitoring of Sulphur dioxide emissions",null,null,"Whole Installation",null,null,"See  Notes in Cell Q3",null,null,{"$f":"+A3","v":"Monitoring of Sulphur dioxide emissions"},null,null,null,"Per Combustion Line",null,null,"Notes:"]
[null,null,null,null,null,null,null,null,null,null,null,null,null,null,null,null,"User to add logic to complete Whole installation, Table A5:G18. From the data in Per Combustion Line, Table J6:O79, subject to No. of lines installed"]
[{"$f":"+'Cover Page'!C39","v":2025},"1/2 Hourly Reference Periods",null,null,"Daily Reference Periods"]
["mg/Nm3","1/2 hourly SO2 ELV","Monthly mean of half-hourly averages","Highest half- hourly average","Daily SO2 ELV","Monthly mean of  daily averages","Highest daily average",null,null,{"$f":"+A5","v":2025},"mg/Nm3","Monthly mean of half-hourly averages","Highest half- hourly average","Monthly mean of  daily averages","Highest daily average"]
["Jan",200,{"$f":"AVERAGE(L7,L22,L37,L52,L67)","v":5.7},{"$f":"MAX(M7,M22,M37,M52,M67)","v":36.799999999999997},40,{"$f":"AVERAGE(N7,N22,N37,N52,N67)","v":5.7},{"$f":"MAX(O7,O22,O37,O52,O67)","v":12.2},null,null,"A1","Jan",5.7,36.799999999999997,5.7,12.2]
["Feb",200,{"$f":"AVERAGE(L8,L23,L38,L53,L68)","v":8.5},{"$f":"MAX(M8,M23,M38,M53,M68)","v":68.099999999999994},40,{"$f":"AVERAGE(N8,N23,N38,N53,N68)","v":8.5},{"$f":"MAX(O8,O23,O38,O53,O68)","v":15.1},null,null,null,"Feb",8.5,68.099999999999994,8.5,15.1]
["Mar",200,9.8000000000000007,106.1,40,9.8000000000000007,24.8,null,null,null,"Mar",9.8000000000000007,106.1,9.8000000000000007,24.8,null,"Whole Installation table A5:G18:"]
["Apr",200,{"$error":"#DIV/0!"},301.89999999999998,40,6.6,13.2,null,null,null,"Apr","6.3.6",301.89999999999998,6.6,13.2,null,"Mean: for 1/2 hourly and daily periods calculate mean of values across all operational combustion lines for the month"]
["May",200,4.5,125.9,40,4.5,16.2,null,null,null,"May",4.5,125.9,4.5,16.2]
["Jun",200,8,171.8,40,8,23,null,null,null,"Jun",8,171.8,8,23]
["Jul",200,8.3000000000000007,193,40,8.3000000000000007,14.8,null,null,null,"Jul",8.3000000000000007,193,8.3000000000000007,14.8,null,"Maximum: for 1/2 hourly and daily periods use the highest value across all operational combustion lines for the month"]
["Aug",200,9,70.2,40,9,14.1,null,null,null,"Aug",9,70.2,9,14.1]
["Sep",200,5.8,48.7,40,5.8,9.5,null,null,null,"Sep",5.8,48.7,5.8,9.5]
["Oct",200,6.6,91.1,40,6.6,10.3,null,null,null,"Oct",6.6,91.1,6.6,10.3]
["Nov",200,5.8,194.4,40,5.8,10.9,null,null,null,"Nov",5.8,194.4,5.8,10.9]
["Dec",200,5,43.2,40,5,10.8,null,null,null,"Dec",5,43.2,5,10.8]
[null,null,null,null,null,null,null,null,null,null,"Annual",{"$f":"AVERAGE(L7:L18)","v":6.9999999999999991},{"$f":"MAX(M7:M18)","v":301.89999999999998},{"$f":"AVERAGE(N7:N18)","v":6.9666666666666659},{"$f":"MAX(O7:O18)","v":24.8}]
[]
[]
[]
[]
[]
[]
[]
[]
[]
[]
[]
[]
[]
[]
[]
[]
[]
[]
[]
[]
[]
[]
[]
[]
[]
[]
[]
[]
["Comments :"]

{"sheet":"NOx","index":16,"n_rows":48,"n_cols":17,"rows_kept":48,"cut":false,"hidden":false,"merged":[[47,0,47,6],[48,0,51,6],[18,4,18,6],[3,16,7,18],[9,16,11,18],[12,16,15,18],[4,1,4,3],[4,4,4,6],[4,9,4,14],[6,9,18,9]]}
[{"$f":"+'Cover Page'!$B$29","v":"Annual Performance Report 2025"},null,null,null,{"$f":"+'Cover Page'!$B$33","v":"SUEZ R&R Kirklees EfW"}]
[]
["Monitoring of Oxides of Nitrogen emissions",null,null,"Whole Installation",null,null,"See  Notes in Cell Q3",null,null,{"$f":"+A3","v":"Monitoring of Oxides of Nitrogen emissions"},null,null,null,"Per Combustion Line",null,null,"Notes:"]
[null,null,null,null,null,null,null,null,null,null,null,null,null,null,null,null,"User to add logic to complete Whole installation, Table A5:G18. From the data in Per Combustion Line, Table J6:O79, subject to No. of lines installed"]
[{"$f":"+'Cover Page'!C39","v":2025},"1/2 Hourly Reference Periods",null,null,"Daily Reference Periods"]
["mg/Nm3","1/2 hourly NOx ELV","Monthly mean of half-hourly averages","Highest half- hourly average","Daily NOx ELV","Monthly mean of  daily averages","Highest daily average",null,null,{"$f":"+A5","v":2025},"mg/Nm3","Monthly mean of half-hourly averages","Highest half- hourly average","Monthly mean of  daily averages","Highest daily average"]
["Jan",400,{"$f":"AVERAGE(L7,L22,L37,L52,L67)","v":146.1},{"$f":"MAX(M7,M22,M37,M52,M67)","v":179.3},180,{"$f":"AVERAGE(N7,N22,N37,N52,N67)","v":146.1},{"$f":"MAX(O7,O22,O37,O52,O67)","v":152.19999999999999},null,null,"A1","Jan",146.1,179.3,146.1,152.19999999999999]
["Feb",400,{"$f":"AVERAGE(L8,L23,L38,L53,L68)","v":150.5},{"$f":"MAX(M8,M23,M38,M53,M68)","v":174.9},180,{"$f":"AVERAGE(N8,N23,N38,N53,N68)","v":150.5},{"$f":"MAX(O8,O23,O38,O53,O68)","v":155.4},null,null,null,"Feb",150.5,174.9,150.5,155.4]
["Mar",400,150.69999999999999,179.6,180,150.69999999999999,157,null,null,null,"Mar",150.69999999999999,179.6,150.69999999999999,157,null,"Whole Installation table A5:G18:"]
["Apr",400,147.19999999999999,186.6,180,147.19999999999999,155.19999999999999,null,null,null,"Apr",147.19999999999999,186.6,147.19999999999999,155.19999999999999,null,"Mean: for 1/2 hourly and daily periods calculate mean of values across all operational combustion lines for the month"]
["May",400,125.8,169.3,180,125.8,143,null,null,null,"May",125.8,169.3,125.8,143]
["Jun",400,146.69999999999999,195,180,146.69999999999999,162.69999999999999,null,null,null,"Jun",146.69999999999999,195,146.69999999999999,162.69999999999999]
["Jul",400,150,173.7,180,150,157.80000000000001,null,null,null,"Jul",150,173.7,150,157.80000000000001,null,"Maximum: for 1/2 hourly and daily periods use the highest value across all operational combustion lines for the month"]
["Aug",400,159.1,218.2,180,159.1,167.2,null,null,null,"Aug",159.1,218.2,159.1,167.2]
["Sep",400,151.9,178.4,180,151.9,162.5,null,null,null,"Sep",151.9,178.4,151.9,162.5]
["Oct",400,149,187.1,180,149,157,null,null,null,"Oct",149,187.1,149,157]
["Nov",400,144.69999999999999,193.1,180,144.69999999999999,154.69999999999999,null,null,null,"Nov",144.69999999999999,193.1,144.69999999999999,154.69999999999999]
["Dec",400,148.6,178.4,180,148.6,158.4,null,null,null,"Dec",148.6,178.4,148.6,158.4]
[null,null,null,null,null,null,null,null,null,null,"Annual",{"$f":"AVERAGE(L7:L18)","v":147.52500000000001},{"$f":"MAX(M7:M18)","v":218.2},{"$f":"AVERAGE(N7:N18)","v":147.52500000000001},{"$f":"MAX(O7:O18)","v":167.2}]
[]
[]
[]
[]
[]
[]
[]
[]
[]
[]
[]
[]
[]
[]
[]
[]
[]
[]
[]
[]
[]
[]
[]
[]
[]
[]
[]
[]
["Comments :"]

{"sheet":"TOC","index":17,"n_rows":48,"n_cols":17,"rows_kept":48,"cut":false,"hidden":false,"merged":[[47,0,47,6],[48,0,51,6],[3,16,7,18],[9,16,11,18],[12,16,15,18],[4,1,4,3],[4,4,4,6],[4,9,4,14],[6,9,18,9]]}
[{"$f":"+'Cover Page'!$B$29","v":"Annual Performance Report 2025"},null,null,null,{"$f":"+'Cover Page'!$B$33","v":"SUEZ R&R Kirklees EfW"}]
[]
["Monitoring of Total organic carbon emissions",null,null,"Whole Installation",null,null,"See  Notes in Cell Q3",null,null,{"$f":"+A3","v":"Monitoring of Total organic carbon emissions"},null,null,null,"Per Combustion Line",null,null,"Notes:"]
[null,null,null,null,null,null,null,null,null,null,null,null,null,null,null,null,"User to add logic to complete Whole installation, Table A5:G18. From the data in Per Combustion Line, Table J6:O79, subject to No. of lines installed"]
[{"$f":"+'Cover Page'!C39","v":2025},"1/2 Hourly Reference Periods",null,null,"Daily Reference Periods"]
["mg/Nm3","1/2 hourly TOC ELV","Monthly mean of half-hourly averages","Highest half- hourly average","Daily TOC ELV","Monthly mean of  daily averages","Highest daily average",null,null,{"$f":"+A5","v":2025},"mg/Nm3","Monthly mean of half-hourly averages","Highest half- hourly average","Monthly mean of  daily averages","Highest daily average"]
["Jan",20,{"$f":"AVERAGE(L7,L22,L37,L52,L67)","v":0.4},{"$f":"MAX(M7,M22,M37,M52,M67)","v":9},10,{"$f":"AVERAGE(N7,N22,N37,N52,N67)","v":0.4},{"$f":"MAX(O7,O22,O37,O52,O67)","v":0.6},null,null,"A1","Jan",0.4,9,0.4,0.6]
["Feb",20,{"$f":"AVERAGE(L8,L23,L38,L53,L68)","v":0.3},{"$f":"MAX(M8,M23,M38,M53,M68)","v":8.8000000000000007},10,{"$f":"AVERAGE(N8,N23,N38,N53,N68)","v":0.3},{"$f":"MAX(O8,O23,O38,O53,O68)","v":0.6},null,null,null,"Feb",0.3,8.8000000000000007,0.3,0.6]
["Mar",20,0.4,10.6,10,0.4,0.8,null,null,null,"Mar",0.4,10.6,0.4,0.8,null,"Whole Installation table A5:G18:"]
["Apr",20,0.5,9.3000000000000007,10,0.5,0.8,null,null,null,"Apr",0.5,9.3000000000000007,0.5,0.8,null,"Mean: for 1/2 hourly and daily periods calculate mean of values across all operational combustion lines for the month"]
["May",20,0,0.9,10,0,0,null,null,null,"May",0,0.9,0,0]
["Jun",20,0.2,11.9,10,0.2,0.6,null,null,null,"Jun",0.2,11.9,0.2,0.6]
["Jul",20,0.7,96.7,10,0.7,10.4,null,null,null,"Jul",0.7,96.7,0.7,10.4,null,"Maximum: for 1/2 hourly and daily periods use the highest value across all operational combustion lines for the month"]
["Aug",20,0.4,18.2,10,0.4,1.4,null,null,null,"Aug",0.4,18.2,0.4,1.4]
["Sep",20,0.3,7.7,10,0.3,0.5,null,null,null,"Sep",0.3,7.7,0.3,0.5]
["Oct",20,0.6,54.6,10,0.6,1.8,null,null,null,"Oct",0.6,54.6,0.6,1.8]
["Nov",20,0.4,8.4,10,0.4,1,null,null,null,"Nov",0.4,8.4,0.4,1]
["Dec",20,0.4,7.5,10,0.4,0.5,null,null,null,"Dec",0.4,7.5,0.4,0.5]
[null,null,null,null,null,null,null,null,null,null,"Annual",{"$f":"AVERAGE(L7:L18)","v":0.38333333333333336},{"$f":"MAX(M7:M18)","v":96.7},{"$f":"AVERAGE(N7:N18)","v":0.38333333333333336},{"$f":"MAX(O7:O18)","v":10.4}]
[]
[]
[]
[]
[]
[]
[]
[]
[]
[]
[]
[]
[]
[]
[]
[]
[]
[]
[]
[]
[]
[]
[]
[]
[]
[]
[]
[]
["Comments :"]

{"sheet":"Particulates","index":18,"n_rows":48,"n_cols":17,"rows_kept":48,"cut":false,"hidden":false,"merged":[[47,0,47,6],[48,0,51,6],[18,4,18,6],[4,16,8,18],[10,16,12,18],[13,16,16,18],[4,1,4,3],[4,4,4,6],[4,9,4,14],[6,9,18,9]]}
[{"$f":"+'Cover Page'!$B$29","v":"Annual Performance Report 2025"},null,null,null,{"$f":"+'Cover Page'!$B$33","v":"SUEZ R&R Kirklees EfW"}]
[]
["Monitoring of Particulate matter emissions",null,null,"Whole Installation",null,null,"See  Notes in Cell Q3",null,null,{"$f":"+A3","v":"Monitoring of Particulate matter emissions"},null,null,null,"Per Combustion Line",null,null,"Notes:"]
[]
[{"$f":"+'Cover Page'!C39","v":2025},"1/2 Hourly Reference Periods",null,null,"Daily Reference Periods",null,null,null,null,null,null,null,null,null,null,null,"User to add logic to complete Whole installation, Table A5:G18. From the data in Per Combustion Line, Table J6:O79, subject to No. of lines installed"]
["mg/Nm3","1/2 hourly PM ELV","Monthly mean of half-hourly averages","Highest half- hourly average","Daily PM ELV","Monthly mean of  daily averages","Highest daily average",null,null,{"$f":"+A5","v":2025},"mg/Nm3","Monthly mean of half-hourly averages","Highest half- hourly average","Monthly mean of  daily averages","Highest daily average"]
["Jan",30,{"$f":"AVERAGE(L7,L22,L37,L52,L67)","v":4.8},{"$f":"MAX(M7,M22,M37,M52,M67)","v":3.1},5,{"$f":"AVERAGE(N7,N22,N37,N52,N67)","v":4.8},{"$f":"MAX(O7,O22,O37,O52,O67)","v":3.8},null,null,"A1","Jan",4.8,3.1,4.8,3.8]
["Feb",30,{"$f":"AVERAGE(L8,L23,L38,L53,L68)","v":2.5},{"$f":"MAX(M8,M23,M38,M53,M68)","v":4.2},5,{"$f":"AVERAGE(N8,N23,N38,N53,N68)","v":2.5},{"$f":"MAX(O8,O23,O38,O53,O68)","v":2.9},null,null,null,"Feb",2.5,4.2,2.5,2.9]
["Mar",30,2.6,4.4000000000000004,5,2.6,3.5,null,null,null,"Mar",2.6,4.4000000000000004,2.6,3.5]
["Apr",30,2.7,4.5,5,2.7,3.2,null,null,null,"Apr",2.7,4.5,2.7,3.2,null,"Whole Installation table A5:G18:"]
["May",30,2.6,5.5,5,2.6,3.1,null,null,null,"May",2.6,5.5,2.6,3.1,null,"Mean: for 1/2 hourly and daily periods calculate mean of values across all operational combustion lines for the month"]
["Jun",30,2.9,9,5,2.9,3.7,null,null,null,"Jun",2.9,9,2.9,3.7]
["Jul",30,3.1,15.8,5,3.1,4.5,null,null,null,"Jul",3.1,15.8,3.1,4.5]
["Aug",30,3,11,5,3,3.4,null,null,null,"Aug",3,11,3,3.4,null,"Maximum: for 1/2 hourly and daily periods use the highest value across all operational combustion lines for the month"]
["Sep",30,2.8,4.2,5,2.8,3.1,null,null,null,"Sep",2.8,4.2,2.8,3.1]
["Oct",30,2.4,5.8,5,2.4,3.2,null,null,null,"Oct",2.4,5.8,2.4,3.2]
["Nov",30,2.1,3.2,5,2.1,2.2999999999999998,null,null,null,"Nov",2.1,3.2,2.1,2.2999999999999998]
["Dec",30,2.2999999999999998,3.7,5,2.2999999999999998,2.5,null,null,null,"Dec",2.2999999999999998,3.7,2.2999999999999998,2.5]
[null,null,null,null,null,null,null,null,null,null,"Annual",{"$f":"AVERAGE(L7:L18)","v":2.8166666666666669},{"$f":"MAX(M7:M18)","v":15.8},{"$f":"AVERAGE(N7:N18)","v":2.8166666666666669},{"$f":"MAX(O7:O18)","v":4.5}]
[]
[]
[]
[]
[]
[]
[]
[]
[]
[]
[]
[]
[]
[]
[]
[]
[]
[]
[]
[]
[]
[]
[]
[]
[]
[]
[]
[]
["Comments :"]

{"sheet":"CO 95% 10 min","index":19,"n_rows":52,"n_cols":19,"rows_kept":52,"cut":false,"hidden":false,"merged":[[50,0,50,7],[51,0,54,7],[4,0,5,7],[6,18,10,20],[12,18,14,20],[15,18,18,20],[7,1,7,4],[7,5,7,7],[7,10,7,16],[9,10,21,10]]}
[{"$f":"+'Cover Page'!$B$29","v":"Annual Performance Report 2025"},null,null,null,{"$f":"+'Cover Page'!$B$33","v":"SUEZ R&R Kirklees EfW"}]
[]
["Monitoring of Carbon Monoxide (10-minute avg)",null,null,null,"Whole Installation",null,null,"See  Notes in Cell S3",null,{"$f":"+A3","v":"Monitoring of Carbon Monoxide (10-minute avg)"},null,null,null,null,"Per Combustion Line",null,"Notes:",null,"Notes:"]
[]
["Please complete this tab for your plant if you have 10-minute average CO ELVs; otherwise, leave it blank and complete the CO 0.5 hourly tab"]
[]
[null,null,null,null,null,null,null,null,null,null,null,null,null,null,null,null,null,null,"User to add logic to complete Whole installation, Table A5:H18. From the data in Per Combustion Line, Table K6:Q79, subject to No. of lines installed"]
[{"$f":"+'Cover Page'!C39","v":2025},"10-minute Reference Periods",null,null,null,"Daily Reference Periods"]
["mg/Nm3","95%ile 10-min avg CO ELV","Highest daily 95%ile 10-min average","Monthly mean of 10-min averages","Highest 10-min average","Daily CO ELV","Monthly mean of  daily averages","Highest daily average",null,null,{"$f":"+A8","v":2025},"mg/Nm3","Highest daily 95%ile 10-min average","Monthly mean of 10-min averages","Highest 10-min average","Monthly mean of  daily averages","Highest daily average"]
["Jan",150,{"$f":"AVERAGE(M10,M25,M40,M55,M70)","v":115.6},{"$f":"AVERAGE(N10,N25,N40,N55,N70)","v":34.299999999999997},{"$f":"MAX(O10,O25,O40,O55,O70)","v":491.8},50,{"$f":"AVERAGE(P10,P25,P40,P55,P70)","v":34.299999999999997},{"$f":"AVERAGE(Q10,Q25,Q40,Q55,Q70)","v":42.9},null,null,"A1","Jan",115.6,34.299999999999997,491.8,34.299999999999997,42.9]
["Feb",{"$f":"+B10","v":150},{"$f":"AVERAGE(M11,M26,M41,M56,M71)","v":104.2},32.200000000000003,{"$f":"MAX(O11,O26,O41,O56,O71)","v":752.7},{"$f":"+F10","v":50},{"$f":"AVERAGE(P11,P26,P41,P56,P71)","v":32.200000000000003},43.9,null,null,null,"Feb",104.2,32.200000000000003,752.7,32.200000000000003,43.9]
["Mar",{"$f":"+B11","v":150},{"$f":"AVERAGE(M12,M27,M42,M57,M72)","v":97.6},30.2,855.6,{"$f":"+F11","v":50},{"$f":"AVERAGE(P12,P27,P42,P57,P72)","v":30.2},38.6,null,null,null,"Mar",97.6,30.2,855.6,30.2,38.6,null,"Whole Installation table A5:H18:"]
["Apr",150,{"$f":"AVERAGE(M13,M28,M43,M58,M73)","v":120.2},34,13.1,50,{"$f":"AVERAGE(P13,P28,P43,P58,P73)","v":34},0.8,null,null,null,"Apr",120.2,34,13.1,34,0.8,null,"Mean: for 10-min and daily periods use average of all operational combustion lines."]
["May",150,{"$f":"AVERAGE(M14,M29,M44,M59,M74)","v":104.7},20.2,387.1,50,{"$f":"AVERAGE(P14,P29,P44,P59,P74)","v":20.2},31.3,null,null,null,"May",104.7,20.2,387.1,20.2,31.3]
["Jun",150,{"$f":"AVERAGE(M15,M30,M45,M60,M75)","v":98.1},24,195,50,{"$f":"AVERAGE(P15,P30,P45,P60,P75)","v":24},162.69999999999999,null,null,null,"Jun",98.1,24,195,24,162.69999999999999]
["Jul",150,{"$f":"AVERAGE(M16,M31,M46,M61,M76)","v":113.5},31.2,873.5,50,{"$f":"AVERAGE(P16,P31,P46,P61,P76)","v":31.2},41.6,null,null,null,"Jul",113.5,31.2,873.5,31.2,41.6,null,"Maximum: for 10-min and daily periods use the highest of all operational combustion lines in any month."]
["Aug",150,{"$f":"AVERAGE(M17,M32,M47,M62,M77)","v":108.2},24,629.70000000000005,50,{"$f":"AVERAGE(P17,P32,P47,P62,P77)","v":24},41.1,null,null,null,"Aug",108.2,24,629.70000000000005,24,41.1]
["Sep",150,{"$f":"AVERAGE(M18,M33,M48,M63,M78)","v":89.6},27.5,455.2,50,{"$f":"AVERAGE(P18,P33,P48,P63,P78)","v":27.5},38.4,null,null,null,"Sep",89.6,27.5,455.2,27.5,38.4]
["Oct",150,{"$f":"AVERAGE(M19,M34,M49,M64,M79)","v":99.8},31,490.8,50,{"$f":"AVERAGE(P19,P34,P49,P64,P79)","v":31},37.799999999999997,null,null,null,"Oct",99.8,31,490.8,31,37.799999999999997]
["Nov",150,{"$f":"AVERAGE(M20,M35,M50,M65,M80)","v":112},34.299999999999997,488.6,50,{"$f":"AVERAGE(P20,P35,P50,P65,P80)","v":34.299999999999997},49,null,null,null,"Nov",112,34.299999999999997,488.6,34.299999999999997,49]
["Dec",150,{"$f":"AVERAGE(M21,M36,M51,M66,M81)","v":106.6},28.2,613,50,{"$f":"AVERAGE(P21,P36,P51,P66,P81)","v":28.2},40.200000000000003,null,null,null,"Dec",106.6,28.2,613,28.2,40.200000000000003]
[null,null,null,null,null,null,null,null,null,null,null,"Annual",{"$f":"AVERAGE(M10:M21)","v":105.84166666666665},null,{"$f":"MAX(O10:O21)","v":873.5},{"$f":"AVERAGE(P10:P21)","v":29.258333333333329},{"$f":"MAX(Q10:Q21)","v":162.69999999999999}]
[]
[]
[]
[]
[]
[]
[]
[]
[]
[]
[]
[]
[]
[]
[]
[]
[]
[]
[]
[]
[]
[]
[]
[]
[]
[]
[]
[]
["Comments :"]
["Environment Agency explanatory note: The 10-minute average ELV is based on the “95th percentile”. In this case this means that 95% of the 10 minute averages in the relevant 24-hour period (i.e. 137) must be below 150 mg/Nm3, and 5% (i.e. 7) are allowed to be any value above 150 mg/Nm3. Whilst we expect operators to minimise CO emissions at all times, it is perfectly acceptable for the value of the maximum 10-minute average to be above 150 mg/Nm3, provided the 95th percentile ELV has been met for that period. "]

{"sheet":"NH3","index":20,"n_rows":49,"n_cols":17,"rows_kept":49,"cut":false,"hidden":false,"merged":[[47,0,47,6],[48,0,51,6],[18,4,18,6],[3,16,7,18],[9,16,11,18],[12,16,15,18],[4,1,4,3],[4,4,4,6],[4,9,4,14],[6,9,18,9]]}
[{"$f":"+'Cover Page'!$B$29","v":"Annual Performance Report 2025"},null,null,null,{"$f":"+'Cover Page'!$B$33","v":"SUEZ R&R Kirklees EfW"}]
[]
["Monitoring of Ammnonia emissions ",null,null,"Whole Installation",null,null,"See  Notes in Cell Q3",null,null,{"$f":"+A3","v":"Monitoring of Ammnonia emissions "},null,null,null,"Per Combustion Line",null,null,"Notes:"]
[null,null,null,null,null,null,null,null,null,null,null,null,null,null,null,null,"User to add logic to complete Whole installation, Table A5:G18. From the data in Per Combustion Line, Table J6:O79, subject to No. of lines installed"]
[{"$f":"+'Cover Page'!C39","v":2025},"1/2 Hourly Reference Periods",null,null,"Daily Reference Periods"]
["mg/Nm3","1/2 hourly NH3 ELV","Monthly mean of half-hourly averages","Highest half- hourly average","Daily NH3 ELV","Monthly mean of  daily averages","Highest daily average",null,null,{"$f":"+A5","v":2025},"mg/Nm3","Monthly mean of half-hourly averages","Highest half- hourly average","Monthly mean of  daily averages","Highest daily average"]
["Jan","None",{"$f":"AVERAGE(L7,L22,L37,L52,L67)","v":0.8},{"$f":"MAX(M7,M22,M37,M52,M67)","v":11.7},15,{"$f":"AVERAGE(N7,N22,N37,N52,N67)","v":0.8},{"$f":"MAX(O7,O22,O37,O52,O67)","v":1.4},null,null,"A1","Jan",0.8,11.7,0.8,1.4]
["Feb",{"$f":"+B7","v":"None"},{"$f":"AVERAGE(L8,L23,L38,L53,L68)","v":0.5},{"$f":"MAX(M8,M23,M38,M53,M68)","v":2.8},15,{"$f":"AVERAGE(N8,N23,N38,N53,N68)","v":0.5},{"$f":"MAX(O8,O23,O38,O53,O68)","v":0.7},null,null,null,"Feb",0.5,2.8,0.5,0.7]
["Mar",{"$f":"+B8","v":"None"},0.5,5,15,0.5,0.9,null,null,null,"Mar",0.5,5,0.5,0.9,null,"Whole Installation table A5:G18:"]
["Apr","None",0.5,13.1,15,0.5,0.8,null,null,null,"Apr",0.5,13.1,0.5,0.8,null,"Mean: for 1/2 hourly and daily periods calculate mean of values across all operational combustion lines for the month"]
["May","None",79.400000000000006,4,15,79.400000000000006,21.4,null,null,null,"May",79.400000000000006,4,79.400000000000006,21.4]
["Jun","None",0.7,17.2,15,0.7,1.1000000000000001,null,null,null,"Jun",0.7,17.2,0.7,1.1000000000000001]
["Jul","None",0.5,25.9,15,0.5,3.3,null,null,null,"Jul",0.5,25.9,0.5,3.3,null,"Maximum: for 1/2 hourly and daily periods use the highest value across all operational combustion lines for the month"]
["Aug","None",0.6,5.6,15,0.6,1,null,null,null,"Aug",0.6,5.6,0.6,1]
["Sep","None",0.5,3,15,0.5,0.8,null,null,null,"Sep",0.5,3,0.5,0.8]
["Oct","None",0.6,10,15,0.6,1.7,null,null,null,"Oct",0.6,10,0.6,1.7]
["Nov","None",0.6,7.3,15,0.6,1.4,null,null,null,"Nov",0.6,7.3,0.6,1.4]
["Dec","None",0.5,9.9,15,0.5,1.1000000000000001,null,null,null,"Dec",0.5,9.9,0.5,1.1000000000000001]
[null,null,null,null,null,null,null,null,null,null,"Annual",{"$f":"AVERAGE(L7:L18)","v":7.1416666666666657},{"$f":"MAX(M7:M18)","v":25.9},{"$f":"AVERAGE(N7:N18)","v":7.1416666666666657},{"$f":"MAX(O7:O18)","v":21.4}]
[]
[]
[]
[]
[]
[]
[]
[]
[]
[]
[]
[]
[]
[]
[]
[]
[]
[]
[]
[]
[]
[]
[]
[]
[]
[]
[]
[]
["Comments :"]
["An indicated ELV value of zero in the table above means that no ammonia limit is/was set in the permit.  "]

{"sheet":"Template changes log","index":21,"n_rows":23,"n_cols":3,"rows_kept":23,"cut":false,"hidden":false,"merged":[]}
["Log of changes to template (Environment Agency use only)"]
[]
["Date","Description of change","New version number and date"]
["2024-01-16","Air (periodic) tab: corrected default O2 reference from 6 to 11% ","Version 23.5a (for incinerators) - 16/01/2024"]
["2024-09-23","Air (periodic) tab: corrected symbol for Thallium to Tl"]
["2024-09-23","Air (periodic) tab: removed last year's references to different emission limit values applying from 03/12/23 and updated all relevant ELVs"]
["2024-09-23","Tabs for continuously monitored pollutants (HCl, SO2 etc.): changed terminology in table headings to improve clarity"]
["2024-09-23","Tabs for continuously monitored pollutants (HCl, SO2 etc.): removed last year's references to different emission limit values applying from 03/12/23 and updated all relevant ELVs"]
["2024-09-23","Perf 1 tab: updated formula for water usage to report m3 rather than litres and corrected error with formula copying operator name"]
["2024-09-23","Operational Summary tab: table added on start-ups and shut-downs"]
["2024-09-23","Operational Summary tab: table added on dioxins and mercury protocols"]
["2024-09-23","Operational Summary tab: table added on AST, QAL 2 and calibration functions"]
["2024-09-23","CO2 N2O tab: various changes made to notes to reflect the fact that most plants should now have calibrated CEMS and flow meters + some have C14 samplers and more up to date industry data","Version 24a (for incinerators) - 23/09/24"]
["2024-11-08","CO2 N2O tab: Changed the N2O CO2 equivalence factor from 298 to 265 in line with recently updated government greenhouse gas figures: https://www.gov.uk/government/publications/greenhouse-gas-reporting-conversion-factors-2024"]
["2024-11-08","CO2 N2O tab: Added an additional requirement for municipal EfW plants to state the yearly average biogenic percentage of the waste by mass, and reference to a document which sets out a methodology for calculating NCV of waste from the results of C14 sampling."]
["2024-11-08","Permit Compliance tab: Two additional columns added + explanatory notes to the table entitled \"Summary of non-compliances under the permit\" to allow CCS scores to be stated where relevant. "]
["2024-11-08","Residue Quality tab: Note added explaining application of TOC and LOI limits and asking operators to report both metrics where measured. ","Version 24.1a (for incinerators) - 08/11/24"]
["2024-11-27","Operational Summary tab: table added on start-ups and shut-downs","Version 24.2a (for incinerators) - 27/11/24"]
["2025-11-27","Cover Page: Print as PDF and Print Report and pdf buttons deleted and blank columns removed; contents page deleted","Version 25.1a (for incinerators) - 27/11/25"]
["2025-11-27","Residue Quality tab renamed to \"Residues\", and Summary of residue handling table moved from Operational Summary tab to Residues tab."]
["2025-11-27","Various changes made to the Operational Data tab including\n•\tReformatting of the rows under the Operational data heading (Rows 3-8) to make it clearer what information is required. \n•\tAmendment of the rows under the Energy Usage / Export heading (Rows 26-32) to calculate an “indicative parasitic load” (now excluding energy imported)\n•\tAmendment of the unit for gas usage from cubic feet to cubic metres (Row 50) \n•\tSome amendments to the first 2 notes and other minor edits\n•\tDeleted \"Overall Availability, mean avg. of all lines, hrs\" row"]
["2025-11-27","Operational Summary tab: Note added requiring all emergency shut-downs be listed, irrespective of whether or not they were reportable. "]
["2025-11-27","CO2 N2O tab: Note added to ask operators to ensure that relevant data reported here matches that which will be submitted under the Pollution Inventory"]